bitfinex-derivatives/quotes_ETHF0:USTF0_20260121
["timestamp","ask_amount","ask_price","bid_price","bid_amount"]
[1768997819523,0.00249951,2920.6,2919.4,0.00513821]
[1768997819918,0.00249951,2920.6,2919.4,2.25345182]
[1768997820110,0.1714,2920.2,2919.4,2.25345182]
[1768997820313,0.1714,2920.2,2919.4,0.00513821]
[1768997820518,0.00249951,2920.6,2919.4,8.21e-06]
[1768997820716,0.1714,2920.2,2919.4,8.21e-06]
[1768997821212,0.00249951,2920.6,2919.4,8.21e-06]
[1768997821423,0.00249951,2920.6,2919.4,2.24832182]
[1768997821925,0.17141,2919.9,2919.4,8.21e-06]
[1768997822221,0.17141,2919.9,2919.0,0.00384981]
[1768997822814,0.17143,2919.7,2919.0,0.00384981]
[1768997823015,0.00249951,2920.6,2918.1,2.24831361]
[1768997823016,5.20501499,2920.1,2918.1,2.24831361]
[1768997823222,0.17144,2919.4,2918.1,2.24831361]
[1768997823711,0.00249951,2920.6,2918.8,0.00513821]
[1768997823915,0.00249951,2920.6,2919.0,2.24831361]
[1768997825817,0.00249951,2920.6,2918.8,0.00865266]
[1768997825818,1.73627228,2920.4,2918.8,0.00865266]
[1768997826124,0.17144,2919.6,2918.8,2.66e-06]
[1768997826317,5.16798819,2919.9,2916.6,2.24831361]
[1768997826521,1.73798819,2919.4,2916.6,2.24831361]
[1768997826722,0.17151,2918.3,2916.6,2.24831361]
[1768997826928,0.17149,2918.6,2916.6,2.24831361]
[1768997827122,0.17149,2918.6,2917.3,2.24831361]
[1768997827423,0.00244589,2918.6,2917.3,2.25163873]
[1768997827627,0.17141,2919.9,2917.3,2.25163873]
[1768997827926,0.17141,2919.9,2917.7,2.24831361]
[1768997828530,0.17141,2919.9,2917.7,2.41985361]
[1768997829033,0.17143,2919.7,2917.7,2.24831361]
[1768997829621,0.17145,2919.3,2918.4,0.00513821]
[1768997829930,0.00308409,2919.9,2918.4,0.00513821]
[1768997830134,0.00513821,2919.1,2917.7,2.24831361]
[1768997830624,0.00513821,2919.1,2917.3,0.00332512]
[1768997830820,0.17148,2918.7,2917.3,0.00332512]
[1768997831022,0.00513821,2919.1,2917.3,2.25163873]
[1768997831420,0.17149,2918.7,2917.9,0.00513821]
[1768997832035,0.17149,2918.7,2917.3,2.25163873]
[1768997833324,4.68154312,2919.1,2917.3,0.00332512]
[1768997833526,1.24640491,2918.9,2916.7,2.24831361]
[1768997834631,0.17152,2918.2,2916.7,2.24831361]
[1768997834825,0.17152,2918.1,2916.7,2.25176021]
[1768997835032,0.17154,2917.8,2916.7,0.0034466]
[1768997835324,0.17515187,2917.8,2916.7,0.0034466]
[1768997835529,0.00513821,2917.5,2916.7,0.0034466]
[1768997836328,0.00361187,2917.8,2916.9,2.17291274]
[1768997836520,0.00361187,2917.8,2916.8,0.00513821]
[1768997836727,0.17158,2917.2,2915.7,2.17291274]
[1768997837529,0.17158,2917.1,2915.7,2.17291274]
[1768997837725,0.17158,2917.1,2915.7,2.17719171]
[1768997837933,0.17158,2917.1,2913.7,0.17178]
[1768997837934,1.99631717,2916.8,2913.7,0.17178]
[1768997838230,0.00513821,2916.7,2913.1,4.46685455]
[1768997838429,0.17173,2914.6,2913.1,4.46685455]
[1768997838626,0.17173,2914.6,2912.5,0.1]
[1768997839023,0.17173,2914.5,2912.9,0.24988116]
[1768997839427,0.00309969,2914.6,2912.9,0.18670444]
[1768997839627,0.17177,2913.8,2912.9,4.44e-06]
[1768997839830,0.17177,2913.8,2912.5,0.1]
[1768997839831,0.00309969,2914.6,2912.5,4.44e-06]
[1768997840028,2.0455727,2914.6,2912.5,4.44e-06]
[1768997840330,2.0455727,2914.6,2912.2,2.17291274]
[1768997840331,0.17179,2913.5,2912.1,1.47867882]
[1768997840535,0.17183,2912.9,2912.1,0.16668703]
[1768997840932,6.0,2912.9,2910.9,4.82291274]
[1768997841132,3.43,2913.3,2910.9,4.82291274]
[1768997841133,1.87796618,2913.3,2910.9,4.82291274]
[1768997841630,1.87796618,2913.3,2910.9,2.65]
[1768997841836,0.17187,2912.1,2910.9,2.65]
[1768997842031,0.17188,2912.0,2911.1,0.50279604]
[1768997842226,0.17189,2911.8,2911.1,0.50279604]
[1768997842431,0.17189,2911.8,2911.1,0.36583604]
[1768997842836,0.00311913,2912.1,2911.1,2.53874878]
[1768997843132,0.00311913,2912.1,2911.1,0.36583604]
[1768997843634,0.17189,2911.9,2911.1,0.36583604]
[1768997844139,0.17189,2911.8,2911.1,0.36583604]
[1768997844435,0.00311913,2912.1,2911.1,2.53874878]
[1768997844641,0.17184,2912.6,2911.1,2.53874878]
[1768997844943,0.17181,2913.2,2911.1,2.53874878]
[1768997845232,1.75057573,2913.9,2911.1,2.53874878]
[1768997845440,1.75152982,2913.5,2911.1,0.36583604]
[1768997845628,0.17188,2912.0,2911.1,0.36583604]
[1768997845832,1.38569378,2912.7,2910.9,0.88973636]
[1768997846145,1.65614936,2913.5,2910.9,0.49733636]
[1768997846439,1.65614936,2913.5,2910.9,2.6702491]
[1768997846440,0.17189,2911.9,2910.9,2.6702491]
[1768997846839,1.65282363,2912.8,2910.9,0.50124512]
[1768997847031,0.17191,2911.6,2910.9,0.50124512]
[1768997847233,0.17192,2911.4,2910.9,0.50124512]
[1768997847445,0.00297373,2911.4,2910.9,0.15570512]
[1768997847634,0.00297373,2911.4,2910.9,5.12e-06]
[1768997847831,6.00297373,2911.4,2910.1,7.91150138]
[1768997848031,0.17198,2910.3,2910.1,7.54715138]
[1768997848232,0.00297373,2911.4,2910.1,7.15107138]
[1768997848441,0.17196,2910.6,2910.1,7.15107138]
[1768997848636,0.17198,2910.3,2910.1,6.38303138]
[1768997848935,0.17194,2911.0,2910.1,6.38587352]
[1768997849130,0.17194,2911.0,2910.2,2.17291274]
[1768997849839,1.16599867,2914.4,2910.2,2.17291274]
[1768997849840,0.1719,2911.7,2910.2,2.17291274]
[1768997850236,1.65282363,2913.9,2910.2,2.17291274]
[1768997850841,0.17188,2912.1,2910.2,2.17291274]
[1768997851042,0.00281196,2913.9,2910.4,2.17291274]
[1768997851338,0.17178,2913.8,2911.7,2.17291274]
[1768997851539,0.17178,2913.7,2911.7,2.34480274]
[1768997851941,0.17181,2913.2,2911.7,2.17291274]
[1768997852544,0.00281196,2913.9,2911.7,2.17291274]
[1768997852843,0.17182,2913.0,2911.7,2.17291274]
[1768997853643,0.00281196,2913.9,2911.7,2.17291274]
[1768997853846,0.17178,2913.7,2911.7,2.17291274]
[1768997854047,0.00281196,2913.9,2911.7,2.17291274]
[1768997854048,0.1718,2913.4,2911.7,2.17291274]
[1768997854235,0.1718,2913.3,2911.7,2.17291274]
[1768997854640,0.00281196,2913.9,2911.7,2.17291274]
[1768997854841,0.17185,2912.5,2911.7,2.17291274]
[1768997855039,0.17186,2912.4,2911.7,1.99799901]
[1768997855241,0.00281196,2913.9,2910.1,6.38587352]
[1768997855242,0.17183,2912.8,2910.1,6.38587352]
[1768997855442,0.17183,2912.8,2910.1,47.18587352]
[1768997855939,0.31482491,2913.9,2910.1,6.38587352]
[1768997856146,0.17186,2912.3,2910.1,6.38587352]
[1768997856339,5.35143285,2913.4,2910.1,6.38587352]
[1768997856545,0.17188,2912.1,2910.1,6.38587352]
[1768997856946,0.26860922,2913.3,2910.1,6.38587352]
[1768997857142,0.17188,2912.0,2910.2,2.17291274]
[1768997857342,0.26860922,2913.3,2910.2,2.17291274]
[1768997857649,0.17189,2911.8,2910.2,2.17291274]
[1768997857849,0.17573126,2911.8,2910.2,2.17291274]
[1768997859137,0.00384126,2911.8,2910.2,2.17291274]
[1768997861145,0.17184,2912.7,2910.2,2.17291274]
[1768997861347,0.17184,2912.7,2910.6,2.34487274]
[1768997861551,0.1718,2913.4,2911.0,2.17291274]
[1768997861844,0.1718,2913.4,2911.2,2.17291274]
[1768997862040,0.17463131,2913.4,2911.2,2.17291274]
[1768997862241,0.17184,2912.7,2911.2,2.17291274]
[1768997862748,0.00283131,2913.4,2911.2,2.17291274]
[1768997862749,0.00514783,2912.2,2911.2,2.17291274]
[1768997863247,0.17189,2911.9,2911.2,2.17291274]
[1768997864340,0.00514783,2912.2,2911.2,2.17291274]
[1768997865148,0.17184,2912.7,2911.2,2.17291274]
[1768997865347,0.17463131,2913.4,2911.2,2.17291274]
[1768997865555,0.00283131,2913.4,2911.2,2.17291274]
[1768997866444,0.00514783,2912.6,2911.2,2.17291274]
[1768997866647,0.17186,2912.4,2911.2,2.17291274]
[1768997867043,0.17186,2912.3,2911.2,2.17291274]
[1768997867645,0.00514783,2912.6,2911.2,2.17291274]
[1768997867846,0.1719,2911.8,2910.6,1.8258468]
[1768997868251,0.17191,2911.6,2910.6,1.8258468]
[1768997868654,0.17192,2911.4,2910.1,6.38587352]
[1768997868949,0.17192,2911.4,2910.2,1.8258468]
[1768997869160,4.59599867,2912.0,2910.2,1.8258468]
[1768997869352,0.17708783,2911.0,2910.2,1.8258468]
[1768997869651,0.1811324,2911.0,2910.2,1.8258468]
[1768997869856,0.17194,2910.9,2910.2,1.8258468]
[1768997870249,0.0091924,2911.0,2910.2,1.8258468]
[1768997871651,1.16599867,2912.3,2910.2,1.8258468]
[1768997872057,0.1719,2911.6,2910.2,1.8258468]
[1768997872252,0.17187,2912.2,2910.2,1.8258468]
[1768997872455,0.17187,2912.2,2910.2,1.9978268]
[1768997872651,0.17187,2912.2,2910.1,6.38587352]
[1768997872652,0.17183,2912.8,2910.6,1.8258468]
[1768997873351,1.16599867,2913.5,2910.6,1.8258468]
[1768997873549,1.16599867,2912.9,2910.6,1.8258468]
[1768997873852,0.1719,2911.6,2910.6,1.8258468]
[1768997874056,1.16599867,2912.6,2911.5,7.83e-06]
[1768997874245,0.1719,2911.6,2911.5,7.83e-06]
[1768997874449,0.17191,2911.5,2910.6,1.8258468]
[1768997875163,1.16599867,2912.5,2910.6,1.8258468]
[1768997875553,0.00514783,2911.8,2910.1,6.38587352]
[1768997875757,0.17196,2910.7,2910.1,6.38587352]
[1768997875959,0.17456916,2910.7,2910.1,6.38587352]
[1768997876161,0.17198,2910.4,2910.1,6.38587352]
[1768997876357,0.00260916,2910.7,2910.1,6.38587352]
[1768997876854,0.00514783,2911.8,2910.2,1.8258468]
[1768997877061,0.17196,2910.6,2910.2,1.8258468]
[1768997877359,0.17195,2910.8,2910.2,1.8258468]
[1768997877761,0.17198,2910.2,2910.1,5.08866698]
[1768997877950,0.17515266,2910.2,2910.1,2.47423331]
[1768997878153,0.23548537,2911.4,2910.1,2.12281331]
[1768997878364,4.41591607,2911.3,2910.1,1.09541331]
[1768997878665,0.98591607,2911.2,2910.1,0.27463331]
[1768997878855,0.98591607,2911.1,2910.1,3.31e-06]
[1768997879054,0.98591607,2911.0,2910.1,3.31e-06]
[1768997879260,0.98591607,2910.9,2910.1,3.31e-06]
[1768997879466,0.17198,2910.2,2910.1,3.31e-06]
[1768997879654,0.172,2909.9,2909.1,1.59462761]
[1768997879963,3.43,2911.4,2909.1,1.59462761]
[1768997880162,0.00514783,2909.8,2909.1,1.59462761]
[1768997880351,0.17715783,2909.8,2909.1,1.59462761]
[1768997880651,3.43,2911.3,2909.1,1.59708434]
[1768997880857,1.16599867,2911.5,2909.1,1.59708434]
[1768997880858,0.98528864,2911.2,2909.1,1.59708434]
[1768997881056,4.59599867,2911.8,2909.1,1.59708434]
[1768997881259,0.17194,2911.0,2909.1,1.59708434]
[1768997881455,1.16599867,2912.3,2909.1,1.76913434]
[1768997881653,0.17193,2911.2,2909.3,1.59462761]
[1768997881851,0.17192,2911.3,2910.4,1.59977544]
[1768997882050,0.17192,2911.4,2910.4,1.59977544]
[1768997882258,0.00417086,2912.3,2910.4,1.59977544]
[1768997882952,0.00417086,2912.3,2907.2,3.06257334]
[1768997882953,0.1721,2908.3,2907.2,3.06257334]
[1768997883165,1.65282363,2908.2,2907.1,2.13399]
[1768997883366,0.17218,2906.9,2906.1,8.04235537]
[1768997883557,0.1722,2906.5,2906.1,7.69690537]
[1768997883758,0.04315497,2907.9,2906.1,6.56962835]
[1768997883964,0.17222,2906.2,2905.2,1.59462761]
[1768997884263,0.0483128,2907.3,2904.5,1.59462761]
[1768997884459,0.17221,2906.5,2904.5,1.59462761]
[1768997884659,3.447,2907.7,2904.6,1.59462761]
[1768997884660,3.45564548,2907.7,2904.6,1.59462761]
[1768997884862,0.17221,2906.4,2905.3,1.59462761]
[1768997885159,0.17221,2906.4,2905.3,1.59735533]
[1768997885361,1.82485363,2909.4,2905.5,1.59462761]
[1768997885564,4.43937676,2909.3,2905.5,1.59462761]
[1768997885765,3.447,2909.1,2905.5,1.59462761]
[1768997886063,0.17211,2908.1,2905.7,1.59462761]
[1768997886267,1.65282363,2909.4,2905.7,1.59462761]
[1768997886564,0.00252281,2908.1,2906.7,1.59462761]
[1768997888158,0.172,2909.9,2906.8,1.59462761]
[1768997888362,0.172,2909.9,2907.5,1.59462761]
[1768997888568,4.61299867,2912.1,2907.7,1.59462761]
[1768997888762,0.99212825,2912.0,2907.7,1.59462761]
[1768997888959,0.99212825,2911.9,2909.6,0.00515783]
[1768997889163,0.17193,2911.2,2909.6,1.60333253]
[1768997889668,0.17193,2911.1,2909.6,1.60333253]
[1768997889859,0.00362519,2911.9,2909.6,1.60333253]
[1768997890056,0.17193,2911.1,2909.6,1.60333253]
[1768997890661,0.00362519,2911.9,2909.6,4.92e-06]
[1768997890966,0.00515783,2910.6,2909.6,1.59463253]
[1768997891276,0.00362519,2911.9,2909.6,1.59463253]
[1768997891462,0.17193,2911.1,2909.6,1.59463253]
[1768997891866,0.17194,2911.0,2909.6,1.59463253]
[1768997892773,0.172,2910.1,2909.6,4.92e-06]
[1768997892963,1.75341519,2911.8,2909.6,4.92e-06]
[1768997893165,0.17194,2911.0,2909.6,4.92e-06]
[1768997893473,0.17194,2911.0,2910.4,0.00515783]
[1768997894167,0.00362519,2911.9,2910.4,0.00515783]
[1768997894367,0.17194,2911.0,2910.4,0.00515783]
[1768997895072,0.00515783,2911.0,2910.4,7.83e-06]
[1768997895265,0.17195,2910.9,2910.4,7.83e-06]
[1768997896767,0.00515783,2911.0,2909.6,4.92e-06]
[1768997896973,0.17195,2910.8,2909.6,4.92e-06]
[1768997897277,0.00515783,2911.0,2909.6,4.92e-06]
[1768997897764,0.17196,2910.7,2909.6,4.92e-06]
[1768997898172,0.00515783,2911.0,2909.6,4.92e-06]
[1768997899373,0.17189,2911.8,2910.1,1.20088333]
[1768997899968,0.1719,2911.7,2910.1,1.20088333]
[1768997900374,0.00515783,2911.2,2910.1,1.20088333]
[1768997901274,0.17189,2911.8,2910.1,1.20088333]
[1768997901876,0.17189,2911.8,2909.3,0.85886971]
[1768997902072,0.17189,2911.8,2909.6,0.17202]
[1768997902468,0.1719,2911.7,2909.6,0.17202]
[1768997902868,0.1719,2911.7,2909.6,0.17519386]
[1768997903073,0.1719,2911.7,2910.4,0.00515783]
[1768997903673,0.1719,2911.6,2910.4,0.00515783]
[1768997903978,0.17191,2911.5,2910.4,0.00515783]
[1768997904772,3.447,2913.3,2910.5,1.20088333]
[1768997904973,0.17183,2912.9,2910.7,1.20088333]
[1768997905172,1.12518012,2913.9,2911.2,1.37280333]
[1768997905173,0.17179,2913.6,2911.2,1.37280333]
[1768997905368,0.17179,2913.6,2911.4,1.37279333]
[1768997905569,1.12518012,2913.9,2911.4,1.37279333]
[1768997905773,0.17181,2913.2,2911.4,1.20088333]
[1768997906268,0.17181,2913.2,2912.0,0.00515783]
[1768997906469,0.17181,2913.2,2912.0,0.00944048]
[1768997906683,0.17552524,2913.9,2912.0,1.21032381]
[1768997907380,0.17178,2913.7,2912.0,1.21032381]
[1768997907571,0.1718,2913.3,2912.0,0.00944048]
[1768997907971,0.00375524,2913.9,2912.0,0.00944048]
[1768997908172,0.17183,2912.9,2912.0,0.00944048]
[1768997908376,0.17552524,2913.9,2912.0,1.21032381]
[1768997908882,0.17177,2913.8,2912.0,1.21032381]
[1768997909284,0.17179,2913.6,2912.0,1.21032381]
[1768997909484,0.17179,2913.5,2912.0,1.21032381]
[1768997910880,0.17181,2913.2,2912.0,0.00944048]
[1768997912379,0.17182,2913.1,2912.0,0.00944048]
[1768997913181,1.19891016,2913.9,2912.0,0.00944048]
[1768997913379,0.17185,2912.6,2912.0,0.00944048]
[1768997913580,0.17186,2912.3,2910.8,1.20088333]
[1768997914485,0.17183,2912.8,2910.8,1.20525688]
[1768997914787,0.17183,2912.8,2911.3,0.00515783]
[1768997915079,0.17183,2912.8,2911.3,1.20604116]
[1768997915285,0.17179,2913.5,2911.6,1.20088333]
[1768997916689,0.17179,2913.5,2911.8,1.20088333]
[1768997917089,0.00375524,2913.9,2911.8,1.37277333]
[1768997917584,0.17552524,2913.9,2911.8,1.37277333]
[1768997918082,0.00375524,2913.9,2912.3,1.20088333]
[1768997918482,0.00375524,2913.9,2910.8,0.00437355]
[1768997918483,0.17173,2914.6,2912.5,1.20088333]
[1768997918675,1.01322278,2915.3,2911.4,8.38782988]
[1768997918676,0.1717,2915.1,2912.9,1.20088333]
[1768997918882,0.1717,2915.0,2912.9,1.20088333]
[1768997919285,0.1717,2915.0,2913.1,1.20088333]
[1768997919483,0.17470987,2915.0,2913.1,1.20504396]
[1768997919684,0.00300987,2915.0,2913.1,1.20504396]
[1768997919882,1.76625962,2916.5,2913.1,1.20504396]
[1768997919883,0.17162,2916.4,2913.8,1.20088333]
[1768997920177,1.76625962,2917.1,2913.2,4.41021031]
[1768997920178,1.00245826,2917.7,2914.9,1.20088333]
[1768997920791,0.1716,2916.8,2914.9,1.20088333]
[1768997921488,1.00245826,2917.0,2914.9,1.20088333]
[1768997921696,0.17156,2917.5,2914.9,1.20088333]
[1768997921893,0.25106275,2917.6,2915.4,0.17168]
[1768997922190,0.25106275,2917.6,2915.5,1.20088333]
[1768997922888,0.25106275,2917.6,2916.3,0.00514836]
[1768997923083,0.00514836,2916.8,2916.3,0.00514836]
[1768997923278,0.00514836,2916.8,2915.4,0.00434479]
[1768997924488,0.17162,2916.5,2915.4,0.00434479]
[1768997924685,0.17162,2916.5,2915.8,0.00514836]
[1768997924885,0.88848277,2916.8,2915.4,0.00434479]
[1768997925686,0.00514836,2916.8,2915.4,0.00434479]
[1768997925987,0.00514836,2916.8,2915.5,0.94048393]
[1768997926292,0.00514836,2916.8,2915.4,0.00434479]
[1768997926480,0.81475894,2916.8,2915.9,0.00514836]
[1768997926685,0.81475894,2916.8,2915.4,0.00434479]
[1768997926889,0.17162,2916.5,2915.4,0.00434479]
[1768997927092,0.00514836,2916.8,2915.4,0.00434479]
[1768997928686,0.00514836,2916.8,2915.4,0.94482872]
[1768997930094,0.00514836,2916.8,2915.8,0.00514836]
[1768997930593,0.42261275,2917.6,2915.8,0.94563229]
[1768997931795,0.17158,2917.1,2915.8,0.00514836]
[1768997932001,0.00514836,2917.0,2915.8,0.00514836]
[1768997932894,0.00514836,2917.0,2915.8,0.94563229]
[1768997933695,0.00514836,2917.0,2915.8,0.00514836]
[1768997934194,0.00514836,2917.0,2915.8,0.94563229]
[1768997935304,0.17149,2918.7,2916.2,1.11211393]
[1768997935598,0.17149,2918.6,2916.4,1.11210393]
[1768997935792,0.61581021,2919.0,2916.6,0.94048393]
[1768997935998,0.86687296,2918.8,2916.6,0.94048393]
[1768997936201,0.17154,2917.8,2916.0,41.74048393]
[1768997936394,1.01950464,2917.7,2916.0,41.74048393]
[1768997936595,0.00514836,2917.2,2916.0,41.74048393]
[1768997936898,0.00514836,2917.2,2916.0,0.94048393]
[1768997938295,0.00435642,2917.8,2916.3,0.7856219]
[1768997939893,0.17156,2917.5,2916.3,0.00514836]
[1768997940700,0.00514836,2917.2,2916.3,0.00514836]
[1768997941300,0.17158,2917.1,2916.3,0.00514836]
[1768997941793,0.00514836,2917.2,2916.3,0.00514836]
[1768997942393,0.72682036,2917.0,2915.4,0.00434479]
[1768997942593,0.17164,2916.2,2915.4,0.00434479]
[1768997942790,0.89842036,2916.8,2915.4,0.00434479]
[1768997942989,0.17161,2916.6,2915.4,0.00434479]
[1768997943205,0.72682036,2916.8,2915.4,0.00434479]
[1768997943396,0.17165,2915.9,2915.4,4.79e-06]
[1768997943596,0.17165,2915.8,2914.0,0.78047354]
[1768997943799,0.70568887,2916.3,2914.0,0.78047354]
[1768997944104,0.00514836,2915.4,2914.0,0.78047354]
[1768997944498,0.00840368,2915.4,2914.0,0.78367542]
[1768997944907,0.00840368,2915.4,2914.0,0.00320188]
[1768997945094,0.1717,2915.1,2914.0,0.00320188]
[1768997945903,0.670007,2915.4,2914.0,0.00320188]
[1768997946104,0.670007,2915.4,2913.3,0.87860056]
[1768997946105,0.17173,2914.6,2913.3,0.87860056]
[1768997946408,0.17173,2914.6,2910.2,17.30981125]
[1768997946409,0.64186937,2914.5,2912.2,0.78047354]
[1768997947104,0.64186937,2914.5,2912.2,0.78340086]
[1768997947606,0.00514836,2913.6,2913.1,0.00514836]
[1768997948200,0.00514836,2913.6,2912.2,0.78340086]
[1768997953100,0.00514836,2913.6,2912.6,0.00349904]
[1768997954112,0.17179,2913.5,2912.6,0.00349904]
[1768997956515,0.00514836,2913.6,2912.6,0.00349904]
[1768997960425,0.17179,2913.5,2912.6,0.00349904]
[1768997960719,0.1718,2913.4,2912.6,0.00349904]
[1768997961116,0.00514836,2913.6,2912.6,0.00349904]
[1768997965825,0.00514836,2913.6,2912.6,0.68691651]
[1768997966524,0.17172,2914.7,2912.6,0.68691651]
[1768997967726,0.00514836,2913.9,2912.6,0.68691651]
[1768997968526,0.17172,2914.7,2913.0,0.68341747]
[1768997968825,0.17172,2914.7,2913.1,1.20232604]
[1768997969025,0.17172,2914.7,2913.1,1.88574351]
[1768997969823,0.00514836,2914.2,2913.1,1.88574351]
[1768997970329,0.00514836,2914.2,2912.6,0.68691651]
[1768997971630,0.17689836,2914.2,2912.6,0.68691651]
[1768997972228,0.00514836,2914.2,2912.7,0.68341747]
[1768997974327,0.00514836,2914.2,2912.6,0.00349904]
[1768997974527,0.17177,2913.9,2912.6,0.00349904]
[1768997975332,0.00514836,2914.2,2912.7,0.68341747]
[1768997976936,1.00958667,2914.1,2912.7,0.68341747]
[1768997977128,0.17689836,2914.2,2912.7,0.68341747]
[1768997977329,0.17689836,2914.2,2912.6,0.00349904]
[1768997977330,0.17178,2913.7,2912.6,0.00349904]
[1768997978733,1.34960483,2914.2,2912.6,0.00349904]
[1768997978932,0.17177,2914.0,2912.6,0.00349904]
[1768997979134,1.18125456,2913.9,2912.6,0.00349904]
[1768997979333,1.00948456,2913.8,2912.6,0.00349904]
[1768997979532,0.17177,2913.9,2912.6,0.00349904]
[1768997979732,1.00945835,2913.8,2912.6,0.00349904]
[1768997979933,0.17177,2913.9,2912.6,0.00349904]
[1768997980235,0.00514836,2914.2,2912.7,0.68341747]
[1768997982443,0.17171,2914.9,2913.2,0.68341747]
[1768997982743,0.00325532,2915.4,2913.7,0.68341747]
[1768997982934,0.00325532,2915.4,2914.2,0.68341747]
[1768997983135,0.17164,2916.1,2914.2,0.68341747]
[1768997983334,0.17164,2916.1,2913.2,4.47509028]
[1768997983335,0.11507477,2915.9,2913.6,0.68341747]
[1768997983537,0.11507477,2915.7,2913.6,0.68341747]
[1768997983744,1.01015618,2915.6,2914.5,0.00514836]
[1768997983944,1.01015618,2915.5,2914.5,0.00514836]
[1768997984141,1.01015618,2915.5,2914.5,0.00838904]
[1768997984142,1.01015618,2915.4,2914.5,0.00838904]
[1768997984344,1.01015618,2915.4,2913.6,0.68341747]
[1768997984345,0.17171,2914.8,2913.1,0.68341747]
[1768997984751,0.17172,2914.7,2913.1,0.68341747]
[1768997985048,0.17173,2914.6,2912.7,0.68341747]
[1768997985245,0.17173,2914.6,2912.7,0.68629158]
[1768997989644,0.17169,2915.2,2913.6,1.73929016]
[1768997989849,0.17169,2915.2,2913.7,0.53696412]
[1768997990048,0.00514836,2915.3,2913.7,0.53696412]
[1768997993543,1.16599867,2916.5,2914.2,0.53696412]
[1768997993752,1.009349,2916.4,2914.7,0.53696412]
[1768997993960,0.17162,2916.4,2914.7,0.53696412]
[1768997994553,0.17165,2915.9,2914.1,0.53696412]
[1768997994746,0.17165,2915.9,2914.7,0.00514836]
[1768997995654,0.00514836,2915.6,2914.7,0.00514836]
[1768997995957,0.17515322,2916.4,2914.7,0.00514836]
[1768997996351,0.17166,2915.8,2914.7,0.00514836]
[1768997997349,0.17166,2915.7,2914.7,0.00514836]
[1768997997860,1.00707212,2915.6,2913.1,0.4861704]
[1768997998048,0.1717,2915.0,2913.1,0.4861704]
[1768998001348,0.17166,2915.7,2913.9,0.4861704]
[1768998001548,0.17167,2915.5,2913.9,0.4861704]
[1768998001749,1.16953189,2916.4,2913.9,0.4861704]
[1768998001947,1.16953189,2916.4,2913.8,0.00514836]
[1768998001948,0.00353322,2916.4,2914.2,0.6579104]
[1768998002146,0.00353322,2916.4,2914.3,0.4861704]
[1768998002355,0.00353322,2916.4,2914.3,0.6579104]
[1768998002556,0.00353322,2916.4,2914.4,0.4861704]
[1768998003254,0.17165,2916.0,2914.4,0.4861704]
[1768998003752,0.00353322,2916.4,2914.7,0.4861704]
[1768998003953,0.00353322,2916.4,2915.2,0.4861704]
[1768998004252,0.17158,2917.2,2915.2,0.48869341]
[1768998004458,0.17158,2917.2,2915.6,0.4861704]
[1768998004756,0.17158,2917.2,2915.7,0.4861704]
[1768998005154,0.00286088,2917.2,2915.7,0.4861704]
[1768998006658,0.00514836,2916.7,2915.7,0.4861704]
[1768998007046,0.00514836,2916.7,2915.5,0.00514836]
[1768998007250,0.00286088,2917.2,2915.5,0.00514836]
[1768998007251,0.00286088,2917.2,2915.7,0.4861704]
[1768998008364,0.1715,2918.5,2916.2,0.4861704]
[1768998008756,1.00444731,2918.4,2917.1,0.00514836]
[1768998008957,0.17153,2917.9,2917.1,0.00514836]
[1768998009158,0.17481369,2917.9,2917.1,0.00514836]
[1768998011250,0.00328369,2917.9,2917.1,0.00514836]
[1768998012357,0.17146,2919.1,2917.1,0.49131876]
[1768998012568,0.17146,2919.1,2917.4,1.68849644]
[1768998012569,0.00508155,2917.8,2917.4,1.68849644]
[1768998012753,0.17146,2919.1,2917.5,0.4861704]
[1768998013459,0.17491238,2919.1,2917.5,0.48914181]
[1768998013664,0.17149,2918.6,2917.5,0.00297141]
[1768998013964,0.00345238,2919.1,2917.5,0.00297141]
[1768998016262,2.16713909,2918.8,2917.1,0.00514836]
[1768998016454,4.44814042,2918.7,2917.1,0.00514836]
[1768998016653,4.44814042,2918.6,2917.1,0.00837149]
[1768998016864,0.17153,2917.9,2917.1,0.00837149]
[1768998017059,3.447,2918.3,2915.4,0.39088483]
[1768998017370,0.17156,2917.4,2915.7,0.39088483]
[1768998017666,0.17157,2917.3,2915.7,0.39088483]
[1768998017867,3.447,2918.2,2915.7,0.39088483]
[1768998018167,0.17157,2917.3,2916.7,0.00514836]
[1768998018365,0.17158,2917.2,2916.7,0.00514836]
[1768998019061,0.17153,2917.9,2916.7,0.00514836]
[1768998019561,0.17154,2917.8,2916.7,0.00514836]
[1768998019967,0.17154,2917.8,2916.7,0.39603319]
[1768998021365,0.17151,2918.3,2916.7,0.39603319]
[1768998021667,0.00345238,2919.1,2917.2,0.39088483]
[1768998021863,0.17149,2918.7,2917.2,0.39088483]
[1768998022264,0.1715,2918.5,2917.2,0.39088483]
[1768998022764,0.17151,2918.4,2917.2,0.39088483]
[1768998022969,0.00345238,2919.1,2916.7,0.00514836]
[1768998023169,0.1715,2918.5,2916.7,0.00514836]
[1768998023361,0.00514836,2918.2,2916.7,0.00514836]
[1768998023872,0.17147,2919.0,2917.1,1.59321087]
[1768998024075,0.17147,2919.0,2917.2,0.39088483]
[1768998024873,0.17147,2918.9,2917.2,0.39088483]
[1768998026563,0.00345238,2919.1,2917.2,0.39088483]
[1768998026769,0.00345238,2919.1,2917.2,0.56245483]
[1768998026960,0.00345238,2919.1,2917.3,0.39088483]
[1768998027157,0.00345238,2919.1,2917.4,0.39088483]
[1768998027558,0.00345238,2919.1,2917.4,0.56244483]
[1768998027759,0.00345238,2919.1,2917.6,0.39088483]
[1768998028959,0.00345238,2919.1,2917.7,40.8]
[1768998029370,0.00345238,2919.1,2917.7,41.19088483]
[1768998029563,0.00345238,2919.1,2917.7,0.39088483]
[1768998030562,0.00345238,2919.1,2916.9,0.39088483]
[1768998030766,0.17147,2919.0,2916.9,0.39088483]
[1768998030975,0.17147,2919.0,2917.1,0.39088483]
[1768998031468,0.00345238,2919.1,2917.5,0.39088483]
[1768998031676,4.84508904,2919.8,2917.8,0.39088483]
[1768998032174,5.01650904,2919.8,2918.5,0.00513909]
[1768998032572,5.01650904,2919.8,2918.5,0.00958159]
[1768998032868,5.02049874,2919.8,2918.5,0.00958159]
[1768998033274,5.02049874,2919.8,2918.5,0.40046642]
[1768998033275,0.0039897,2919.8,2918.5,0.40046642]
[1768998033667,0.17139,2920.4,2918.5,0.40046642]
[1768998033867,1.00933639,2920.3,2918.5,0.40046642]
[1768998034076,0.17139,2920.3,2918.5,0.40046642]
[1768998034271,1.00909095,2920.2,2918.5,0.00958159]
[1768998034483,0.17143,2919.6,2918.5,0.00958159]
[1768998034664,0.17470634,2919.6,2918.5,0.00958159]
[1768998035072,0.17145,2919.3,2918.5,0.00958159]
[1768998035976,0.00327634,2919.6,2918.5,0.00958159]